fUST/lending_fUST_20260511
["ID","MTS","AMOUNT","RATE_DAILY","PERIOD"]
[422036503,1778509840000,-579.25680343,9.999e-05,2]
[422036505,1778509840000,-579.25680343,9.999e-05,2]
[422036520,1778509840000,-614.90337595,9.999e-05,2]
[422036510,1778509840000,-579.25680343,9.999e-05,2]
[422036508,1778509840000,-579.25680343,9.999e-05,2]
[422036511,1778509840000,-579.25680343,9.999e-05,2]
[422036513,1778509840000,-579.25680343,9.999e-05,2]
[422036506,1778509840000,-579.25680343,9.999e-05,2]
[422036512,1778509840000,-579.25680343,9.999e-05,2]
[422036518,1778509840000,-579.25680343,9.999e-05,2]
[422036525,1778509840000,-614.90337595,9.999e-05,2]
[422036529,1778509840000,-614.90337595,9.999e-05,2]
[422036516,1778509840000,-579.25680343,9.999e-05,2]
[422036509,1778509840000,-500.0,9.999e-05,2]
[422036517,1778509840000,-579.25680343,9.999e-05,2]
[422036571,1778509841000,-5884.11361017,0.0001,2]
[422036570,1778509841000,-380.36253887,0.0001,2]
[422036569,1778509841000,-1719.26634701,0.0001,2]
[422036596,1778509844000,-259.14535789,0.0001,2]
[422036595,1778509844000,-9308.68351841,0.0001,2]
[422036609,1778509847000,-27499.30216846,0.0001,2]
[422036608,1778509847000,-3202.65195746,0.0001,2]
[422036606,1778509847000,-151.44,9.9e-05,2]
[422036607,1778509847000,-24827.64606763,0.0001,2]
[422036610,1778509886000,151.0,0.00012,120]
[422036634,1778511023000,7912.91,0.0001,10]
[422036686,1778511032000,-1802.01301417,7.469e-05,2]
[422036683,1778511032000,-954.81698583,7.394e-05,2]
[422036682,1778511032000,-165.963189,4.061e-05,2]
[422036687,1778511032000,-161.30685805,7.507e-05,2]
[422036685,1778511032000,-3197.98698583,7.469e-05,2]
[422036684,1778511032000,-4045.18301417,7.394e-05,2]
[422036689,1778511033000,-303.317327,8.219e-05,2]
[422036688,1778511033000,-225.0,7.543e-05,2]
[422036690,1778511033000,-300.0,8.913e-05,2]
[422036691,1778511033000,-190.3420925,9.507e-05,2]
[422036692,1778511033000,-457.69406655,9.796e-05,2]
[422036693,1778511033000,-174.47318237,9.796e-05,2]
[422036704,1778511033000,-500.0,9.796e-05,2]
[422036694,1778511033000,-325.52681763,9.796e-05,2]
[422036696,1778511033000,-500.0,9.796e-05,2]
[422036700,1778511033000,-500.0,9.796e-05,2]
[422036702,1778511033000,-500.0,9.796e-05,2]
[422036703,1778511033000,-500.0,9.796e-05,2]
[422036698,1778511033000,-500.0,9.796e-05,2]
[422036705,1778511033000,-500.0,9.796e-05,2]
[422036706,1778511033000,-500.0,9.796e-05,2]
[422036719,1778511033000,-102.81641746,9.796e-05,2]
[422036708,1778511033000,-500.0,9.796e-05,2]
[422036713,1778511033000,-267.47450937,9.796e-05,2]
[422036717,1778511033000,-376.63192672,9.796e-05,2]
[422036714,1778511033000,-500.0,9.796e-05,2]
[422036712,1778511033000,-500.0,9.796e-05,2]
[422036718,1778511033000,-500.0,9.796e-05,2]
[422036715,1778511033000,-500.0,9.796e-05,2]
[422036716,1778511033000,-500.0,9.796e-05,2]
[422036709,1778511033000,-351.96147549,9.796e-05,2]
[422036710,1778511033000,-500.0,9.796e-05,2]
[422036711,1778511033000,-500.0,9.796e-05,2]
[422036707,1778511033000,-476.10605566,9.796e-05,2]
[422036773,1778511038000,-500.0,9.796e-05,2]
[422036760,1778511038000,-2933.38235051,4.02e-05,2]
[422036762,1778511038000,-397.18358254,9.796e-05,2]
[422036764,1778511038000,-500.0,9.796e-05,2]
[422036766,1778511038000,-338.08251093,9.796e-05,2]
[422036777,1778511038000,-500.0,9.796e-05,2]
[422036778,1778511038000,-500.0,9.796e-05,2]
[422036768,1778511038000,-500.0,9.796e-05,2]
[422036771,1778511038000,-500.0,9.796e-05,2]
[422036770,1778511038000,-500.0,9.796e-05,2]
[422036775,1778511038000,-500.0,9.796e-05,2]
[422036788,1778511038000,-500.0,9.796e-05,2]
[422036800,1778511038000,-300.0,9.796e-05,2]
[422036784,1778511038000,-500.0,9.796e-05,2]
[422036780,1778511038000,-500.0,9.796e-05,2]
[422036805,1778511038000,-3273.73303254,9.797e-05,2]
[422036796,1778511038000,-500.0,9.796e-05,2]
[422036803,1778511038000,-30274.63002657,9.797e-05,2]
[422036798,1778511038000,-300.0,9.796e-05,2]
[422036810,1778511038000,-2412.0,9.797e-05,2]
[422036792,1778511038000,-500.0,9.796e-05,2]
[422036790,1778511038000,-500.0,9.796e-05,2]
[422036786,1778511038000,-500.0,9.796e-05,2]
[422036782,1778511038000,-500.0,9.796e-05,2]
[422036794,1778511038000,-500.0,9.796e-05,2]
[422036807,1778511038000,-40150.97262846,9.797e-05,2]
[422037128,1778511046000,-1816.81261667,9.797e-05,2]
[422037223,1778511066000,151.0,0.00012,120]
[422037224,1778511127000,151.0,0.00012,120]
[422037225,1778511692000,-5000.0,8.665e-05,2]
[422037226,1778511696000,151.0,0.00012,120]
[422037227,1778511709000,-169.63448754,8.767e-05,2]
[422037228,1778511726000,-195.72628761,8.781e-05,2]
[422037230,1778511743000,151.0,0.00012,120]
[422037229,1778511743000,-173.394795,8.842e-05,2]
[422037231,1778511760000,-1200.0,9.612e-05,2]
[422037232,1778511766000,151.0,0.00012,120]
[422037233,1778511778000,-1052.0918107,8.67e-05,2]
[422037234,1778511794000,-300.0,9.514e-05,2]
[422037235,1778511796000,151.0,0.00012,120]
[422037236,1778511836000,151.0,0.00012,120]
[422037273,1778512232000,-1818.77708116,7.524e-05,2]
[422037271,1778512232000,-469.74779629,7.524e-05,2]
[422037283,1778512232000,-300.0,7.599e-05,2]
[422037277,1778512232000,-300.0,7.599e-05,2]
[422037281,1778512232000,-282.0,7.599e-05,2]
[422037279,1778512232000,-300.0,7.599e-05,2]
[422037275,1778512232000,-2711.47512255,7.524e-05,2]
[422037284,1778512232000,-300.0,7.599e-05,2]
[422037286,1778512232000,-806.52487745,7.6e-05,2]
[422037291,1778512232000,-174.13196135,8.116e-05,2]
[422037293,1778512232000,-200.0,8.986e-05,2]
[422037298,1778512232000,-5602.45077034,9.514e-05,2]
[422037295,1778512232000,-161.621689,9.006e-05,2]
[422037289,1778512232000,-4586.13995752,7.6e-05,2]
[422037363,1778512238000,-500.0,9.514e-05,2]
[422037372,1778512238000,-500.0,9.514e-05,2]
[422037362,1778512238000,-500.0,9.514e-05,2]
[422037360,1778512238000,-500.0,9.514e-05,2]
[422037358,1778512238000,-500.0,9.514e-05,2]
[422037357,1778512238000,-500.0,9.514e-05,2]
[422037355,1778512238000,-30609.49833202,9.514e-05,2]
[422037356,1778512238000,-320.38584659,9.514e-05,2]
[422037361,1778512238000,-500.0,9.514e-05,2]
[422037359,1778512238000,-500.0,9.514e-05,2]
[422037374,1778512238000,-500.0,9.514e-05,2]
[422037373,1778512238000,-500.0,9.514e-05,2]
[422037364,1778512238000,-500.0,9.514e-05,2]
[422037367,1778512238000,-500.0,9.514e-05,2]
[422037366,1778512238000,-500.0,9.514e-05,2]
[422037368,1778512238000,-648.67583455,9.514e-05,2]
[422037370,1778512238000,-500.0,9.514e-05,2]
[422037371,1778512238000,-535.98227169,9.514e-05,2]
[422037369,1778512238000,-319.62576964,9.514e-05,2]
[422037375,1778512238000,-40476.90178191,9.515e-05,2]
[422037377,1778512238000,-12033.40121222,9.515e-05,2]
[422037376,1778512238000,-2075.00998034,9.515e-05,2]
[422037378,1778512238000,-943.065,9.515e-05,2]
[422037365,1778512238000,-500.0,9.514e-05,2]
[422037383,1778512240000,-533.21178026,9.515e-05,2]
[422037382,1778512240000,-1806.30804927,9.515e-05,2]
[422037396,1778512243000,-52247.4196524,9.515e-05,2]
[422037394,1778512243000,-585.75366434,9.515e-05,2]
[422037403,1778512246000,-33399.17127873,9.515e-05,2]
[422037402,1778512246000,-4644.7,9.42e-05,2]
[422037401,1778512246000,-355.3,9.42e-05,2]
[422037498,1778513432000,-173.394795,8.196e-05,2]
[422037492,1778513432000,-698.15084257,8.114e-05,2]
[422037494,1778513432000,-1291.48552246,8.114e-05,2]
[422037496,1778513432000,-3010.36363497,8.114e-05,2]
[422037508,1778513432000,-622.90735851,9.093e-05,2]
[422037505,1778513432000,-188.76690486,8.57e-05,2]
[422037500,1778513432000,-1052.0918107,8.219e-05,2]
[422037511,1778513432000,-300.0,9.099e-05,2]
[422037535,1778513432000,-1645.36692601,9.121e-05,2]
[422037514,1778513432000,-1200.0,9.099e-05,2]
[422037517,1778513432000,-940.27154311,9.1e-05,2]
[422037526,1778513432000,-1115.24321018,9.1e-05,2]
[422037529,1778513432000,-1427.2603401,9.1e-05,2]
[422037519,1778513432000,-2307.68240934,9.1e-05,2]
[422037521,1778513432000,-2106.23992687,9.1e-05,2]
[422037532,1778513432000,-824.05925144,9.121e-05,2]
[422037524,1778513432000,-2324.37173852,9.1e-05,2]
[422037580,1778513440000,-1258.43671265,9.03e-05,2]
[422037582,1778513440000,-523.75236559,9.03e-05,2]
[422037579,1778513440000,-500.0,9.03e-05,2]
[422037584,1778513440000,-928.07102195,9.121e-05,2]
[422037583,1778513440000,-1698.75890447,9.03e-05,2]
[422037585,1778513440000,-7909.01872154,9.121e-05,2]
[422037581,1778513440000,-1019.05201729,9.03e-05,2]
[422037589,1778513441000,-18293.99762428,9.121e-05,2]
[422037588,1778513441000,-2463.48621564,9.121e-05,2]
[422037590,1778513441000,-8732.04928174,9.123e-05,2]
[422037595,1778513441000,-171.0690661,9.212e-05,2]
[422037593,1778513441000,-447.186,9.128e-05,2]
[422037591,1778513441000,-1267.95071826,9.123e-05,2]
[422037596,1778513441000,-149.48082864,9.212e-05,2]
[422037592,1778513441000,-150.308,9.128e-05,2]
[422037594,1778513441000,-500.0,9.212e-05,2]
[422037597,1778513441000,-500.0,9.212e-05,2]
[422037598,1778513441000,-303.49641987,9.212e-05,2]
[422037599,1778513441000,-196.50358013,9.212e-05,2]
[422037600,1778513441000,-500.0,9.212e-05,2]
[422037608,1778513441000,-500.0,9.212e-05,2]
[422037601,1778513441000,-500.0,9.212e-05,2]
[422037605,1778513441000,-370.74448844,9.212e-05,2]
[422037604,1778513441000,-500.0,9.212e-05,2]
[422037603,1778513441000,-500.0,9.212e-05,2]
[422037602,1778513441000,-500.0,9.212e-05,2]
[422037606,1778513441000,-500.0,9.212e-05,2]
[422037607,1778513441000,-500.0,9.212e-05,2]
[422037609,1778513441000,-500.0,9.212e-05,2]
[422037612,1778513441000,-3885.45215023,9.213e-05,2]
[422037610,1778513441000,-4057.49500651,9.213e-05,2]
[422037611,1778513441000,-32316.35624364,9.213e-05,2]
[422037621,1778513443000,-3256.23330091,9.213e-05,2]
[422037620,1778513443000,-1179.67946753,9.213e-05,2]
[422037625,1778513443000,-5808.49999837,9.213e-05,2]
[422037623,1778513443000,-813.5,9.213e-05,2]
[422037624,1778513443000,-468.942,9.213e-05,2]
[422037622,1778513443000,-285.0,9.213e-05,2]
[422037642,1778513446000,-36954.83170845,9.214e-05,2]
[422037639,1778513446000,-276.5150003,9.213e-05,2]
[422037640,1778513446000,-9515.15640683,9.213e-05,2]
[422037641,1778513446000,-26659.35575925,9.213e-05,2]
[422037638,1778513446000,-46204.40261382,9.213e-05,2]
[422037643,1778513447000,-24931.97207102,9.214e-05,2]
[422037644,1778513447000,-39923.21132233,9.214e-05,2]
[422037647,1778513447000,-7983.175,9.214e-05,2]
[422037645,1778513447000,-3842.95219703,9.214e-05,2]
[422037705,1778514632000,-500.0,8.911e-05,2]
[422037715,1778514632000,-500.0,8.911e-05,2]
[422037701,1778514632000,-500.0,8.911e-05,2]
[422037703,1778514632000,-480.05948133,8.911e-05,2]
[422037700,1778514632000,-518.565,8.734e-05,2]
[422037681,1778514632000,-276.36,7.749e-05,2]
[422037694,1778514632000,-192.89832483,7.867e-05,2]
[422037696,1778514632000,-587.0,7.905e-05,2]
[422037690,1778514632000,-3726.31777763,7.749e-05,2]
[422037692,1778514632000,-5000.0,7.827e-05,2]
[422037698,1778514632000,-150.308,8.734e-05,2]
[422037688,1778514632000,-997.32222237,7.749e-05,2]
[422037719,1778514632000,-500.0,8.911e-05,2]
[422037736,1778514632000,-12147.13375248,8.912e-05,2]
[422037707,1778514632000,-459.52114191,8.911e-05,2]
[422037717,1778514632000,-500.0,8.911e-05,2]
[422037738,1778514632000,-1078.08916142,8.912e-05,2]
[422037734,1778514632000,-1428.50066713,8.912e-05,2]
[422037730,1778514632000,-400.0,8.911e-05,2]
[422037726,1778514632000,-500.0,8.911e-05,2]
[422037728,1778514632000,-500.0,8.911e-05,2]
[422037732,1778514632000,-76874.00929806,8.912e-05,2]
[422037722,1778514632000,-500.0,8.911e-05,2]
[422037713,1778514632000,-500.0,8.911e-05,2]
[422037711,1778514632000,-500.0,8.911e-05,2]
[422037709,1778514632000,-500.0,8.911e-05,2]
[422037720,1778514632000,-451.70298315,8.911e-05,2]
[422037724,1778514632000,-500.0,8.911e-05,2]
[422037872,1778514638000,-402.0077308,9.18e-05,2]
[422037877,1778514638000,-3880.4872437,9.18e-05,2]
[422037876,1778514638000,-539.0996499,9.18e-05,2]
[422037871,1778514638000,-216.1498956,9.18e-05,2]
[422037875,1778514638000,-7528.7673521,9.18e-05,2]
[422037867,1778514638000,-154.59527081,9.1e-05,2]
[422037874,1778514638000,-219.2542677,9.18e-05,2]
[422037862,1778514638000,-999.03636835,7.672e-05,2]
[422037868,1778514638000,-154.05144493,9.1e-05,2]
[422037869,1778514638000,-154.96808946,9.1e-05,2]
[422037866,1778514638000,-151.55038913,9.1e-05,2]
[422037864,1778514638000,-514507.27808397,8.912e-05,2]
[422037865,1778514638000,-233.09541908,8.912e-05,2]
[422037863,1778514638000,-40330.25711273,8.912e-05,2]
[422037873,1778514638000,-14205.3177207,9.18e-05,2]
[422037870,1778514638000,-10304.236402,9.18e-05,2]
[422037878,1778514638000,-162.380719,9.454e-05,2]
[422037879,1778514638000,-537.6845,9.454e-05,2]
[422037889,1778514638000,-652.19350791,9.784e-05,2]
[422037888,1778514638000,-644.79446246,9.729e-05,2]
[422037891,1778514638000,-2491.62943404,9.796e-05,2]
[422037897,1778514638000,-419.17655004,9.796e-05,2]
[422037893,1778514638000,-1775.51133028,9.796e-05,2]
[422037894,1778514638000,-3994.90049312,9.796e-05,2]
[422037896,1778514638000,-5600.56006036,9.796e-05,2]
[422037895,1778514638000,-7094.94327578,9.796e-05,2]
[422037890,1778514638000,-500.0,9.796e-05,2]
[422037892,1778514638000,-443.87783257,9.796e-05,2]
[422037885,1778514638000,-3153.196153,9.6e-05,2]
[422037883,1778514638000,-151.0,9.593e-05,2]
[422037886,1778514638000,-599.60298507,9.619e-05,2]
[422037881,1778514638000,-557.5788265,9.509e-05,2]
[422037880,1778514638000,-537.6845,9.454e-05,2]
[422037887,1778514638000,-621.78829552,9.674e-05,2]
[422037884,1778514638000,-151.0,9.593e-05,2]
[422037882,1778514638000,-578.20924308,9.564e-05,2]
[422037941,1778514639000,-500.0,0.0001041,2]
[422037939,1778514639000,-500.0,0.0001041,2]
[422037940,1778514639000,-500.0,0.0001041,2]
[422037937,1778514639000,-500.0,0.0001041,2]
[422037938,1778514639000,-500.0,0.0001041,2]
[422037932,1778514639000,-944.0,0.0001041,2]
[422037933,1778514639000,-944.0,0.0001041,2]
[422037930,1778514639000,-944.0,0.0001041,2]
[422037935,1778514639000,-964.86344473,0.0001041,2]
[422037931,1778514639000,-944.0,0.0001041,2]
[422037949,1778514639000,-500.0,0.0001041,2]
[422037936,1778514639000,-500.0,0.0001041,2]
[422037946,1778514639000,-500.0,0.0001041,2]
[422037950,1778514639000,-500.0,0.0001041,2]
[422037944,1778514639000,-500.0,0.0001041,2]
[422037943,1778514639000,-500.0,0.0001041,2]
[422037942,1778514639000,-500.0,0.0001041,2]
[422037952,1778514639000,-500.0,0.0001041,2]
[422037951,1778514639000,-500.0,0.0001041,2]
[422037948,1778514639000,-500.0,0.0001041,2]
[422037934,1778514639000,-944.0,0.0001041,2]
[422037947,1778514639000,-500.0,0.0001041,2]
[422037953,1778514639000,-500.0,0.0001041,2]
[422037954,1778514639000,-219.33776712,0.0001041,2]
[422037956,1778514639000,-500.0,0.0001041,2]
[422037957,1778514639000,-500.0,0.0001041,2]
[422037958,1778514639000,-403.07737979,0.0001041,2]
[422037959,1778514639000,-185.0,0.0001041,2]
[422037945,1778514639000,-500.0,0.0001041,2]
[422037929,1778514639000,-944.0,0.0001041,2]
[422037917,1778514639000,-944.0,0.0001041,2]
[422037924,1778514639000,-944.0,0.0001041,2]
[422037960,1778514639000,-170.4443247,0.0001041,2]
[422037898,1778514639000,-1676.70620016,9.796e-05,2]
[422037900,1778514639000,-227.6200233,9.867e-05,2]
[422037899,1778514639000,-3768.81636142,9.796e-05,2]
[422037901,1778514639000,-152.0,9.962e-05,2]
[422037902,1778514639000,-345441.80225202,0.0001,2]
[422037904,1778514639000,-500.0,0.0001007,2]
[422037905,1778514639000,-163.97,0.00010184,2]
[422037909,1778514639000,-168.26,0.0001025,2]
[422037906,1778514639000,-164.53,0.00010191,2]
[422037914,1778514639000,-944.0,0.0001041,2]
[422037903,1778514639000,-557.5788265,0.00010002,2]
[422037908,1778514639000,-165.87,0.00010206,2]
[422037915,1778514639000,-944.0,0.0001041,2]
[422037907,1778514639000,-793.0,0.000102,2]
[422037910,1778514639000,-171.81,0.00010257,2]
[422037912,1778514639000,-944.0,0.0001041,2]
[422037911,1778514639000,-500.0,0.00010344,2]
[422037913,1778514639000,-944.0,0.0001041,2]
[422037919,1778514639000,-944.0,0.0001041,2]
[422037916,1778514639000,-944.0,0.0001041,2]
[422037918,1778514639000,-944.0,0.0001041,2]
[422037928,1778514639000,-944.0,0.0001041,2]
[422037925,1778514639000,-944.0,0.0001041,2]
[422037920,1778514639000,-944.0,0.0001041,2]
[422037926,1778514639000,-944.0,0.0001041,2]
[422037921,1778514639000,-944.0,0.0001041,2]
[422037927,1778514639000,-944.0,0.0001041,2]
[422037922,1778514639000,-944.0,0.0001041,2]
[422037923,1778514639000,-944.0,0.0001041,2]
[422037961,1778514639000,-160.0,0.00010441,2]
[422037983,1778514639000,-500.0,0.00010958,2]
[422037962,1778514639000,-185.0,0.00010455,2]
[422038000,1778514639000,-500.0,0.00010958,2]
[422037998,1778514639000,-500.0,0.00010958,2]
[422037993,1778514639000,-500.0,0.00010958,2]
[422037996,1778514639000,-500.0,0.00010958,2]
[422037999,1778514639000,-500.0,0.00010958,2]
[422037997,1778514639000,-500.0,0.00010958,2]
[422037995,1778514639000,-500.0,0.00010958,2]
[422038003,1778514639000,-500.0,0.00010958,2]
[422038002,1778514639000,-500.0,0.00010958,2]
[422038006,1778514639000,-127.27868356,0.00010958,2]
[422038008,1778514639000,-500.0,0.00010958,2]
[422038007,1778514639000,-492.83077863,0.00010958,2]
[422038009,1778514639000,-500.0,0.00010958,2]
[422038001,1778514639000,-500.0,0.00010958,2]
[422038018,1778514639000,-500.0,0.00010958,2]
[422038012,1778514639000,-500.0,0.00010958,2]
[422038010,1778514639000,-500.0,0.00010958,2]
[422038015,1778514639000,-500.0,0.00010958,2]
[422038013,1778514639000,-165.73,0.00010958,2]
[422038011,1778514639000,-500.0,0.00010958,2]
[422038014,1778514639000,-500.0,0.00010958,2]
[422038019,1778514639000,-500.0,0.00010958,2]
[422037955,1778514639000,-500.0,0.0001041,2]
[422038020,1778514639000,-500.0,0.00010958,2]
[422038022,1778514639000,-559.52,0.00010958,2]
[422038025,1778514639000,-500.0,0.00010958,2]
[422038023,1778514639000,-562.71,0.00010958,2]
[422038024,1778514639000,-500.0,0.00010958,2]
[422038017,1778514639000,-500.0,0.00010958,2]
[422038004,1778514639000,-500.0,0.00010958,2]
[422038021,1778514639000,-500.0,0.00010958,2]
[422037994,1778514639000,-500.0,0.00010958,2]
[422038005,1778514639000,-372.72131644,0.00010958,2]
[422037963,1778514639000,-443.0,0.00010455,2]
[422037965,1778514639000,-500.0,0.00010618,2]
[422037966,1778514639000,-190.29248234,0.0001078,2]
[422037968,1778514639000,-7479.23928426,0.00010858,2]
[422037979,1778514639000,-500.0,0.00010958,2]
[422037978,1778514639000,-523.38,0.00010958,2]
[422037970,1778514639000,-152.0,0.00010889,2]
[422037967,1778514639000,-168.3888056,0.00010823,2]
[422037972,1778514639000,-155.0,0.00010957,2]
[422037969,1778514639000,-152.0,0.00010872,2]
[422037975,1778514639000,-417.838771,0.00010958,2]
[422037971,1778514639000,-152.0,0.0001091,2]
[422037974,1778514639000,-4433.067935,0.00010958,2]
[422037964,1778514639000,-578.20924308,0.0001055,2]
[422037973,1778514639000,-818.033,0.00010958,2]
[422037977,1778514639000,-500.0,0.00010958,2]
[422037987,1778514639000,-500.0,0.00010958,2]
[422037988,1778514639000,-500.0,0.00010958,2]
[422037989,1778514639000,-500.0,0.00010958,2]
[422037990,1778514639000,-468.92,0.00010958,2]
[422037985,1778514639000,-500.0,0.00010958,2]
[422037986,1778514639000,-194.54,0.00010958,2]
[422037981,1778514639000,-500.0,0.00010958,2]
[422037991,1778514639000,-500.0,0.00010958,2]
[422037980,1778514639000,-381.73,0.00010958,2]
[422037984,1778514639000,-500.0,0.00010958,2]
[422037982,1778514639000,-500.0,0.00010958,2]
[422037992,1778514639000,-500.0,0.00010958,2]
[422037976,1778514639000,-500.0,0.00010958,2]
[422038066,1778514640000,-445.52783597,0.00010958,2]
[422038062,1778514640000,-500.0,0.00010958,2]
[422038060,1778514640000,-500.0,0.00010958,2]
[422038056,1778514640000,-500.0,0.00010958,2]
[422038055,1778514640000,-585.67,0.00010958,2]
[422038051,1778514640000,-500.0,0.00010958,2]
[422038048,1778514640000,-500.0,0.00010958,2]
[422038050,1778514640000,-500.0,0.00010958,2]
[422038049,1778514640000,-500.0,0.00010958,2]
[422038054,1778514640000,-589.25,0.00010958,2]
[422038064,1778514640000,-500.0,0.00010958,2]
[422038070,1778514640000,-500.0,0.00010958,2]
[422038071,1778514640000,-500.0,0.00010958,2]
[422038072,1778514640000,-660.24,0.00010958,2]
[422038063,1778514640000,-500.0,0.00010958,2]
[422038065,1778514640000,-582.73,0.00010958,2]
[422038069,1778514640000,-500.0,0.00010958,2]
[422038067,1778514640000,-500.0,0.00010958,2]
[422038068,1778514640000,-500.0,0.00010958,2]
[422038073,1778514640000,-500.0,0.00010958,2]
[422038075,1778514640000,-500.0,0.00010958,2]
[422038052,1778514640000,-500.0,0.00010958,2]
[422038061,1778514640000,-500.0,0.00010958,2]
[422038058,1778514640000,-500.0,0.00010958,2]
[422038036,1778514640000,-500.0,0.00010958,2]
[422038053,1778514640000,-500.0,0.00010958,2]
[422038031,1778514640000,-314.88125962,0.00010958,2]
[422038032,1778514640000,-500.0,0.00010958,2]
[422038028,1778514640000,-500.0,0.00010958,2]
[422038030,1778514640000,-500.0,0.00010958,2]
[422038027,1778514640000,-500.0,0.00010958,2]
[422038026,1778514640000,-500.0,0.00010958,2]
[422038029,1778514640000,-601.87,0.00010958,2]
[422038034,1778514640000,-500.0,0.00010958,2]
[422038033,1778514640000,-500.0,0.00010958,2]
[422038035,1778514640000,-500.0,0.00010958,2]
[422038046,1778514640000,-500.0,0.00010958,2]
[422038037,1778514640000,-500.0,0.00010958,2]
[422038039,1778514640000,-500.0,0.00010958,2]
[422038045,1778514640000,-690.95,0.00010958,2]
[422038074,1778514640000,-500.0,0.00010958,2]
[422038043,1778514640000,-500.0,0.00010958,2]
[422038042,1778514640000,-500.0,0.00010958,2]
[422038041,1778514640000,-500.0,0.00010958,2]
[422038044,1778514640000,-500.0,0.00010958,2]
[422038047,1778514640000,-500.0,0.00010958,2]
[422038057,1778514640000,-500.0,0.00010958,2]
[422038059,1778514640000,-500.0,0.00010958,2]
[422038038,1778514640000,-500.0,0.00010958,2]
[422038078,1778514640000,-500.0,0.00010958,2]
[422038040,1778514640000,-500.0,0.00010958,2]
[422038076,1778514640000,-532.61,0.00010958,2]
[422038107,1778514640000,-500.0,0.00010958,2]
[422038108,1778514640000,-500.0,0.00010958,2]
[422038111,1778514640000,-500.0,0.00010958,2]
[422038112,1778514640000,-8119.62,0.00010958,2]
[422038110,1778514640000,-500.0,0.00010958,2]
[422038116,1778514640000,-477.07,0.00010958,2]
[422038115,1778514640000,-2655.21,0.00010958,2]
[422038114,1778514640000,-500.0,0.00010958,2]
[422038117,1778514640000,-500.0,0.00010958,2]
[422038113,1778514640000,-500.0,0.00010958,2]
[422038119,1778514640000,-500.0,0.00010958,2]
[422038120,1778514640000,-1497.89,0.00010958,2]
[422038122,1778514640000,-500.0,0.00010958,2]
[422038126,1778514640000,-500.0,0.00010958,2]
[422038125,1778514640000,-1886.25213447,0.00010958,2]
[422038124,1778514640000,-59.91786553,0.00010958,2]
[422038123,1778514640000,-500.0,0.00010958,2]
[422038127,1778514640000,-500.0,0.00010958,2]
[422038121,1778514640000,-150.66,0.00010958,2]
[422038129,1778514640000,-5179.39,0.00010958,2]
[422038130,1778514640000,-500.0,0.00010958,2]
[422038128,1778514640000,-500.0,0.00010958,2]
[422038077,1778514640000,-500.0,0.00010958,2]
[422038102,1778514640000,-500.0,0.00010958,2]
[422038106,1778514640000,-500.0,0.00010958,2]
[422038118,1778514640000,-500.0,0.00010958,2]
[422038101,1778514640000,-967.64,0.00010958,2]
[422038104,1778514640000,-500.0,0.00010958,2]
[422038079,1778514640000,-500.0,0.00010958,2]
[422038082,1778514640000,-500.0,0.00010958,2]
[422038081,1778514640000,-500.0,0.00010958,2]
[422038080,1778514640000,-500.0,0.00010958,2]
[422038085,1778514640000,-534.25,0.00010958,2]
[422038087,1778514640000,-500.0,0.00010958,2]
[422038088,1778514640000,-260.99,0.00010958,2]
[422038083,1778514640000,-500.0,0.00010958,2]
[422038084,1778514640000,-500.0,0.00010958,2]
[422038090,1778514640000,-500.0,0.00010958,2]
[422038091,1778514640000,-500.0,0.00010958,2]
[422038086,1778514640000,-254.92169211,0.00010958,2]
[422038100,1778514640000,-500.0,0.00010958,2]
[422038093,1778514640000,-273.8,0.00010958,2]
[422038092,1778514640000,-530.47,0.00010958,2]
[422038095,1778514640000,-1607.97,0.00010958,2]
[422038094,1778514640000,-500.0,0.00010958,2]
[422038097,1778514640000,-500.0,0.00010958,2]
[422038096,1778514640000,-1103.71,0.00010958,2]